Workbook

Sheet Instructions
H4: ORDER ENTRY FORM INSTRUCTIONS
B7: About this Order Form
B9: The Order Form can be printed for manual entry / computation or used as an Excel document. The Order Form operates by executing a macro.
B10: The macro has been programmed to work with Excel 2013 or higher. To confirm what version of Excel you are using go to File/Account. On the
B11: right side of the screen the version of Excel should be visible.
B13: NOTE: This is a template form, so please save a copy that can be reused. Please do not reuse the template for multiple orders.
B15: Order Entry Instructions
B17: Before you can enter data, please click the box under the Tool Bar titled "Enabled Editing".
B21: Order Information / Billing / Shipping / Payment
B22: Please enter all applicable information.
B24: Product Selection
B25: The form has been organized to follow along with the 2017 Nexbelt Catalog. On the far left side of the form we have provided references ot the
B26: pages in the catalog. Item Descriptions and Part No.'s on the form correspond to those in the catalog.
B28: The entire form with all of the products listed may be prinited, if desired.
B30: All of the products in the catalog are listed on the form. Please select the quanities of each itme ordered. A total cost for the items selected is
B31: provided at the bottom of the form.
B33: We have left room at the bottom of thre form for entry of product items that may not be in the catalog. Please provide as much information as
B34: possible when adding items that are not in the catalog. A clear description and price are essential, and idelaly we would like a Part No.. If you
B35: do not have this information, your Sales Representative or Customer Service Department (909-758-0079) can assist.
B37: There is an Order Notes section at the bottom of the form. Please use this for any special requests or other information you would like to
B38: include with the order.
B40: Reviewing Your Order
B42: The form has the capability to show only those items ordered. This view is also the view that should be used for printing the order, if desired.
B44: To view the Order Form with just the items ordered, do the following:
B46: First click the Enable Content button displayed under the Tool Bar.
B49: Click the button labeled | G49: and then give the form a moment to adjust the display to just the items ordered.
B52: You may also print the form, as well, and save the form as an Excel Sheet. If you are ready to submit the order then, preferably save as a pdf and
B53: forward to your Sales Representative or our Customer Service Department for processing.
B55: Order Notes and Order Information may be added at any time, including after shrinking the form to view only those items ordered.
B57: Important Notice: A qty of 30+ pcs of any one item requires call ahead confirmation
B59: Adjusting Your Order
B61: After reviewing your order, it is possible to see the entire catalog list again and add more items.
B63: Select | E63: and the form will expand back to its full listing of all catalog items. Any quantity may be changed.
B65: Select "Show Ordered Items" to again just see the items that have been ordered.
B67: Flag Entry Sheet
B69: The Flag Entry Sheet is for use with producing selections of our Heritage and USA series packages and buckles.
B72: Each entry made on this sheet will carry back to the order form.
B80: Selection Fields
B81: Use a separate line for each selection. All fields Product to Qty need to be filled in.
D85: Enter if the item being chosen is a Package or a Buckle.
D88: Enter the Buckle Type - Go In! or Classic.
D91: Choose the flag for the buckle.
D94: Select the strap if this is a Package - Smooth Black, Smooth White or Walnut
D97: Enter the quantity desired.
B100: Some combinations are not available. The entry sheet will indicate there is a problem with the selection after entering the Qty.
B108: Other Information
B110: Member Number
B111: Enter VGM account numbers as follows: VGM 123456.
B112: Please make sure you include the letters "VGM" and there is a space between the M and the first number.
B114: Next to the Order Summary there is a VGM Award indicator, "YES" if the customer qualifies for one or more free belts and a wood display if it is a first
B115: time order, and "NO" if there is no award due to not meeting the minimum sale qty of 12.
B135: Summary | C135: Summary | D135: Summary | E135: Summary | F135: Summary | G135: Summary | H135: Summary | I135: Summary | J135: Summary
B136: =Buckle | C136: =Classic | D136: =Display | E136: =EDC | F136: =Go-In! | G136: =Golf | H136: =Strap | I136: =Team | J136: =Add'tl

Sheet Order
J1: 2021 Stock Order Form
J2: 10390 Regis Ct
F3: 2021-01-18 | J3: Rancho Cucamonga, CA 91730
J4: Phone: 909-758-0079 Fax: 866-610-4573
B7: Order Information:
B8: Order Date: | I8: Shipping Window
B9: Customer PO: | I9: From:
B10: Rep Name: | I10: To:
B12: Billing Information:
B13: Customer Name: | I13: Member #:
B14: Address:
B15: City: | G15: State: | I15: Zip:
B16: Contact: | G16: Phone:
B17: Email:
B19: Shipping Information:
B20: Customer Name: | D20: Same as Billing information above
B21: Address:
B22: City: | G22: State: | I22: Zip:
B23: Contact: | G23: Phone:
B24: Email:
B26: Payment Information:
B27: Credit Card: | G27: Card Type:
B28: Name on Card: | G28: Zip:
B29: Exp Date: | G29: CVV:
B32: Description | E32: UPC Code | F32: Item Code | G32: Price | H32: MAP | I32: Qty | J32: Total | K32: Summary | L32: INVENTORY UPDATE 1/15/21
A33: Go-In! Colour Series v.4 p.1 | B33: Go-In! Pebble Grain Pitch Black | E33: 811685023778 | F33: PGC3778 | G33: $31.50 | H33: =IF(G33=0," ",(G33*2)-0.01) -> $62.99 | J33: =I33*G33 -> $0.00 | K33: Golf | L33: IN STOCK
B34: Go-In! Pebble Grain Cognac | E34: 811685023914 | F34: PGC3914 | G34: $31.50 | H34: $62.99 | J34: $0.00 | K34: Golf | L34: IN STOCK
B35: Go-In! Pebble Grain Deep Sea Navy | E35: 811685023822 | F35: PGC3822 | G35: $31.50 | H35: $62.99 | J35: $0.00 | K35: Golf | L35: IN STOCK
B36: Go-In!PebbleGrainTobacco | E36: 811685023907 | F36: PGC3907 | G36: $31.50 | H36: =IF(G36=0,"",(G36*2)-0.01) -> $62.99 | J36: $0.00 | K36: Golf | L36: INSTOCK
B37: Go-In! Pebble Grain Smoke Grey | E37: 811685024133 | F37: PGC4133 | G37: $31.50 | H37: $62.99 | J37: $0.00 | K37: Golf | L37: IN STOCK
B38: Go-In! Pebble Grain Winner White | E38: 811685024164 | F38: PGC4164 | G38: $31.50 | H38: $62.99 | J38: $0.00 | K38: Golf | L38: IN STOCK
A39: Classic Colour Series p.2 | B39: Classic Pebble Grain Pitch Black | E39: 811685024676 | F39: PCC4676 | G39: $26.50 | H39: =IF(G39=0," ",(G39*2)-0.01) -> $52.99 | J39: =I39*G39 -> $0.00 | K39: Classic | L39: LOW INVENTORY | M39: =+IFERROR(VLOOKUP(F39,#REF!,2,FALSE)," ") -> 
B40: Classic Pebble Grain Cognac | E40: 811685024720 | F40: PCC4720 | G40: $26.50 | H40: =IF(G40=0," ",(G40*2)-0.01) -> $52.99 | J40: $0.00 | K40: Classic | L40: IN STOCK | M40: =+IFERROR(VLOOKUP(F40,#REF!,2,FALSE)," ") -> 
B41: Classic Pebble Grain Deep Sea Navy | E41: 811685024850 | F41: PCC4850 | G41: $26.50 | H41: $52.99 | J41: $0.00 | K41: Classic | L41: IN STOCK | M41: =+IFERROR(VLOOKUP(F41,#REF!,2,FALSE)," ") -> 
B42: Classic Pebble Grain Tobacco | E42: 818172026373 | F42: PCC6373 | G42: $26.50 | H42: $52.99 | J42: $0.00 | K42: Classic | L42: IN STOCK | M42: =+IFERROR(VLOOKUP(F42,#REF!,2,FALSE)," ") -> 
B43: Classic Pebble Grain Smoke Grey | E43: 811685025055 | F43: PCC5055 | G43: $26.50 | H43: $52.99 | J43: $0.00 | K43: Classic | L43: IN STOCK | M43: =+IFERROR(VLOOKUP(F43,#REF!,2,FALSE)," ") -> 
B44: Classic Pebble Grain Winner White | E44: 811685025048 | F44: PCC5048 | G44: $26.50 | H44: $52.99 | J44: $0.00 | K44: Classic | L44: IN STOCK | M44: =+IFERROR(VLOOKUP(F44,#REF!,2,FALSE)," ") -> 
A45: Fast Eddie Series p. 3 | B45: Fast Eddie Xavier X Factor NEW! | E45: 818172027493 | F45: PGF7493 | G45: $34.50 | H45: =IF(G45=0," ",(G45*2)-0.01) -> $68.99 | J45: $0.00 | K45: Golf | L45: IN STOCK APRIL | M45: =+IFERROR(VLOOKUP(F45,#REF!,2,FALSE)," ") -> 
B46: Fast Eddie Lucky Blue X Factor NEW! | E46: 818172027509 | F46: PGF7509 | G46: $34.50 | H46: =IF(G46=0," ",(G46*2)-0.01) -> $68.99 | J46: $0.00 | K46: Golf | L46: IN STOCK
B47: Fast Eddie Platinum X Factor NEW! | E47: 818172028193 | F47: PGF8193 | G47: $34.50 | H47: $68.99 | J47: $0.00 | K47: Golf | L47: IN STOCK
B48: Fast Eddie Carbon Black | E48: 811685020616 | F48: PGF0616 | G48: $34.50 | H48: =IF(G48=0," ",(G48*2)-0.01) -> $68.99 | J48: =I48*G48 -> $0.00 | K48: Golf | L48: IN STOCK
B49: Fast Eddie Shield Pitch Black | E49: 818172026380 | F49: PGF6380 | G49: $34.50 | H49: $68.99 | J49: $0.00 | K49: Golf | L49: IN STOCK | M49: =+IFERROR(VLOOKUP(F49,#REF!,2,FALSE)," ") -> 
A50: Hampton Series p.4 | B50: Hampton Clover | E50: 818172026878 | F50: PCM6878 | G50: $26.50 | H50: $52.99 | J50: =I50*G50 -> $0.00 | K50: Classic | L50: OUT OF STOCK - MARCH | M50: =+IFERROR(VLOOKUP(F50,#REF!,2,FALSE)," ") -> 
B51: Hampton USA | E51: 818172022443 | F51: PCM2443 | G51: $26.50 | H51: =IF(G51=0," ",(G51*2)-0.01) -> $52.99 | J51: =I51*G51 -> $0.00 | K51: Classic | L51: IN STOCK | M51: =+IFERROR(VLOOKUP(F51,#REF!,2,FALSE)," ") -> 
B52: Hampton Tee Time | E52: 818172022450 | F52: PCM2450 | G52: $26.50 | H52: $52.99 | J52: $0.00 | K52: Classic | L52: IN STOCK | M52: =+IFERROR(VLOOKUP(F52,#REF!,2,FALSE)," ") -> 
A53: Shield Series V.3 p.5 | B53: Go-In! Shield Grey NEW! | E53: 818172027523 | F53: PGG7523 | G53: $31.50 | H53: =IF(G53=0," ",(G53*2)-0.01) -> $62.99 | J53: $0.00 | K53: Golf | L53: IN STOCK | M53: =+IFERROR(VLOOKUP(F53,#REF!,2,FALSE)," ") -> 
B54: Classic Shield Grey NEW! | E54: 818172027530 | F54: PCE7530 | G54: $26.50 | H54: $52.99 | J54: $0.00 | K54: Classic | L54: IN STOCK
B55: Go-In! Shield Black 3.0 | E55: 818172024515 | F55: PGG4515 | G55: $31.50 | H55: =IF(G55=0," ",(G55*2)-0.01) -> $62.99 | J55: =I55*G55 -> $0.00 | K55: Golf | L55: IN STOCK
B56: Classic Shield Black 3.0 | E56: 818172024492 | F56: PCE4492 | G56: $26.50 | H56: $52.99 | J56: $0.00 | K56: Classic | L56: IN STOCK | M56: =+IFERROR(VLOOKUP(F56,#REF!,2,FALSE)," ") -> 
B57: Go-In! Shield Espresso 3.0 | E57: 818172024553 | F57: PGG4553 | G57: $31.50 | H57: $62.99 | J57: =I57*G57 -> $0.00 | K57: Golf | L57: IN STOCK | M57: =+IFERROR(VLOOKUP(F57,#REF!,2,FALSE)," ") -> 
B58: Classic Espresso 3.0 | E58: 818172024539 | F58: PCE4539 | G58: $26.50 | H58: $52.99 | J58: =I58*G58 -> $0.00 | K58: Classic | L58: IN STOCK | M58: =+IFERROR(VLOOKUP(F58,#REF!,2,FALSE)," ") -> 
B59: Go-In! Shield White 3.0 | E59: 818172024614 | F59: PGG4614 | G59: $31.50 | H59: $62.99 | J59: =I59*G59 -> $0.00 | K59: Golf | L59: IN STOCK | M59: =+IFERROR(VLOOKUP(F59,#REF!,2,FALSE)," ") -> 
B60: Classic White 3.0 | E60: 818172024584 | F60: PCE4584 | G60: $26.50 | H60: $52.99 | J60: =I60*G60 -> $0.00 | K60: Classic | L60: IN STOCK | M60: =+IFERROR(VLOOKUP(F60,#REF!,2,FALSE)," ") -> 
A61: Go-In! Tradition Series p.6 | B61: Go-In! Tradition Espresso | E61: 818172024430 | F61: PGG4430 | G61: $31.50 | H61: =IF(G61=0," ",(G61*2)-0.01) -> $62.99 | J61: =I61*G61 -> $0.00 | K61: Golf | L61: IN STOCK | M61: =+IFERROR(VLOOKUP(F61,#REF!,2,FALSE)," ") -> 
B62: Go-In! Tradition Smooth White | E62: 818172024454 | F62: PGG4454 | G62: $31.50 | H62: $62.99 | J62: $0.00 | K62: Golf | L62: IN STOCK | M62: =+IFERROR(VLOOKUP(F62,#REF!,2,FALSE)," ") -> 
B63: Go-In! Tradition Carbon Black | E63: 818172024423 | F63: PGG4423 | G63: $31.50 | H63: $62.99 | J63: $0.00 | K63: Golf | L63: IN STOCK | M63: =+IFERROR(VLOOKUP(F63,#REF!,2,FALSE)," ") -> 
B64: Go-In! Smooth Black | E64: 818172024478 | F64: PGG4478 | G64: $31.50 | H64: $62.99 | J64: $0.00 | K64: Golf | L64: IN STOCK | M64: =+IFERROR(VLOOKUP(F64,#REF!,2,FALSE)," ") -> 
A65: Youth Series p.7 | B65: Youth Black | E65: 818172027981 | F65: PGJ7981 | G65: $15.00 | H65: $29.99 | J65: $0.00 | K65: Golf | L65: IN STOCK MARCH/APRIL
B66: Youth White | E66: 818172027967 | F66: PGJ7967 | G66: $15.00 | H66: $29.99 | J66: $0.00 | K66: Golf | L66: IN STOCK MARCH/APRIL
B67: Youth Grey | E67: 818172027974 | F67: PGJ7974 | G67: $15.00 | H67: $29.99 | J67: $0.00 | K67: Golf | L67: IN STOCK MARCH/APRIL
A68: Misc. Packages p.8 | B68: Go-In! Carbon White Golf Belt | F68: EIS5877 | G68: $31.50 | H68: =IF(G68=0," ",(G68*2)-0.01) -> $62.99 | J68: =I68*G68 -> $0.00 | K68: Golf | L68: IN STOCK
B69: Jake Carbon White Belt | E69: 818172026779 | F69: PCE6779 | G69: $26.50 | H69: $52.99 | J69: $0.00 | K69: Classic | L69: OUT OF STOCK - LATE FEBRUARY
B70: Aston Eagle Black Belt | E70: 811685026335 | F70: PCE6335 | G70: $26.50 | H70: $52.99 | J70: $0.00 | K70: Classic | L70: OUT OF STOCK - MARCH/APRIL
B71: Aston Eagle White Belt | E71: 811685026366 | F71: PCE6366 | G71: $26.50 | H71: $52.99 | J71: $0.00 | K71: Classic | L71: IN STOCK
A72: 2020 Ryder Cup Series p. 9-10 | B72: Go-In! Ryder Cup Admiral White | E72: 818172026434 | F72: CPG6434 | G72: $36.00 | H72: $71.99 | J72: =I72*G72 -> $0.00 | K72: Golf | L72: IN STOCK | M72: =+IFERROR(VLOOKUP(F72,#REF!,2,FALSE)," ") -> 
B73: Go-In! Ryder Cup Smooth Black | E73: 818172026441 | F73: CPG6441 | G73: $36.00 | H73: $71.99 | J73: =I73*G73 -> $0.00 | K73: Golf | L73: IN STOCK | M73: =+IFERROR(VLOOKUP(F73,#REF!,2,FALSE)," ") -> 
B74: Go-In! Ryder Cup PG Sunday Red | E74: 818172026458 | F74: CPG6458 | G74: $36.00 | H74: $71.99 | J74: $0.00 | K74: Golf | L74: IN STOCK | M74: =+IFERROR(VLOOKUP(F74,#REF!,2,FALSE)," ") -> 
B75: Go-In! Ryder Cup Classic Captain | E75: 818172026465 | F75: CPG6465 | G75: $36.00 | H75: $71.99 | J75: $0.00 | K75: Golf | L75: IN STOCK | M75: =+IFERROR(VLOOKUP(F75,#REF!,2,FALSE)," ") -> 
B76: Hampton Ryder Cup | E76: 818172026472 | F76: CPC6472 | G76: $30.00 | H76: $59.99 | J76: $0.00 | K76: Classic | L76: IN STOCK | M76: =+IFERROR(VLOOKUP(F76,#REF!,2,FALSE)," ") -> 
B77: Buckle: Go-In! Ryder Cup Nickel Buckle | E77: 818172026403 | F77: CBG6403 | G77: $14.00 | H77: $27.99 | J77: $0.00 | K77: Buckle | L77: IN STOCK | M77: =+IFERROR(VLOOKUP(F77,#REF!,2,FALSE)," ") -> 
B78: Cap: Ryder Cup Pitch Black | F78: HCB-RCWSB | G78: $20.00 | H78: $39.99 | J78: $0.00 | K78: Cap | L78: IN STOCK | M78: =+IFERROR(VLOOKUP(F78,#REF!,2,FALSE)," ") -> 
B79: Cap: Ryder Cup Deep Sea Navy | F79: HCB-RCWSN | G79: $20.00 | H79: $39.99 | J79: $0.00 | K79: Cap | L79: IN STOCK | M79: =+IFERROR(VLOOKUP(F79,#REF!,2,FALSE)," ") -> 
B80: Cap: Ryder Cup Winner White | F80: HCB-RCWSW | G80: $20.00 | H80: $39.99 | J80: $0.00 | K80: Cap | L80: IN STOCK | M80: =+IFERROR(VLOOKUP(F80,#REF!,2,FALSE)," ") -> 
B81: Cap: Ryder Cup Steel Grey | F81: HCB-RCWSG | G81: $20.00 | H81: $39.99 | J81: $0.00 | K81: Cap | L81: IN STOCK | M81: =+IFERROR(VLOOKUP(F81,#REF!,2,FALSE)," ") -> 
A82: Heritage Series p. 11-12 | B82: Anthem White NEW! | E82: 818172027868 | F82: PCH7868 | G82: $26.50 | H82: $52.99 | J82: $0.00 | K82: Classic | L82: IN STOCK MARCH | M82: =+IFERROR(VLOOKUP(F82,#REF!,2,FALSE)," ") -> 
B83: Anthem Navy NEW! | E83: 818172027851 | F83: PCH7851 | G83: $26.50 | H83: $52.99 | J83: $0.00 | K83: Classic | L83: IN STOCK MARCH | M83: =+IFERROR(VLOOKUP(F83,#REF!,2,FALSE)," ") -> 
B84: Liberty Braided NEW! | E84: 818172028087 | F84: PCD8087 | G84: $26.50 | H84: $52.99 | J84: $0.00 | K84: Classic | L84: IN STOCK MARCH
B85: Heritage Captain | E85: 811685020524 | F85: PCH0524 | G85: $26.50 | H85: $52.99 | J85: $0.00 | K85: Classic | L85: IN STOCK
B86: Heritage USA Black Go-In! 3.0 | E86: 818172025475 | F86: PGH5475 | G86: $31.50 | H86: =IF(G86=0," ",(G86*2)-0.01) -> $62.99 | J86: =I86*G86 -> $0.00 | K86: Golf | L86: IN STOCK
B87: Heritage USA White Go-In! 3.0 | E87: 818172026304 | F87: PGH6304 | G87: $31.50 | H87: =IF(G87=0," ",(G87*2)-0.01) -> $62.99 | J87: $0.00 | K87: Golf | L87: IN STOCK
B88: Go-In! Black Series USA | E88: 811685025468 | F88: PGB5468 | G88: $31.50 | H88: =(G88*2)-0.01 -> $62.99 | J88: $0.00 | K88: Golf | L88: OUT OF STOCK
B89: Classic Black Series USA | E89: 811685025451 | F89: PCB5451 | G89: $29.50 | H89: =(G89*2)-0.01 -> $58.99 | J89: $0.00 | K89: Classic | L89: IN STOCK
B90: Super Patriot White | E90: 818172024300 | F90: PCZ4300 | G90: $31.50 | H90: =IF(G90=0," ",(G90*2)-0.01) -> $62.99 | J90: $0.00 | K90: Classic | L90: IN STOCK
B91: Super Patriot Black | E91: 818172024294 | F91: PCZ4294 | G91: $31.50 | H91: $62.99 | J91: $0.00 | K91: Classic | L91: IN STOCK
B92: Heritage USA Aston Black | E92: 818172020586 | F92: PCH0586 | G92: $31.50 | H92: =(G92*2)-0.01 -> $62.99 | J92: $0.00 | K92: Classic | L92: IN STOCK
B93: Heritage USA Aston White | E93: 818172022771 | F93: PCH2771 | G93: $31.50 | H93: =IF(G93=0," ",(G93*2)-0.01) -> $62.99 | J93: $0.00 | K93: Classic | L93: IN STOCK
B94: Embossed Pewter USA | E94: 811685027721 | F94: PCH7721 | G94: $31.50 | H94: =(G94*2)-0.01 -> $62.99 | J94: $0.00 | K94: Classic | L94: IN STOCK
B95: USA Embossed Legacy NEW! | E95: 818172028179 | F95: PCH8179 | G95: $31.50 | H95: =(G95*2)-0.01 -> $62.99 | J95: $0.00 | K95: Classic | L95: IN STOCK
B96: USA Aston Black Series | E96: 811685027769 | F96: PCB7769 | G96: $29.50 | H96: =(G96*2)-0.01 -> $58.99 | J96: =I96*G96 -> $0.00 | K96: Classic | L96: LOW INVENTORY
A97: Rogue Series p.1 | B97: Rogue Black | E97: 818172024713 | F97: PCE4713 | G97: $26.50 | H97: $52.99 | J97: =I97*G97 -> $0.00 | K97: Classic | L97: IN STOCK | M97: =+IFERROR(VLOOKUP(F97,#REF!,2,FALSE)," ") -> 
B98: Rogue Espresso | E98: 818172024737 | F98: PCE4737 | G98: $26.50 | H98: =IF(G98=0," ",(G98*2)-0.01) -> $52.99 | J98: =I98*G98 -> $0.00 | K98: Classic | L98: IN STOCK | M98: =+IFERROR(VLOOKUP(F98,#REF!,2,FALSE)," ") -> 
B99: Rogue Walnut 2.0 | E99: 818172026526 | F99: PCE6526 | G99: $26.50 | H99: $52.99 | J99: $0.00 | K99: Classic | L99: IN STOCK | M99: =+IFERROR(VLOOKUP(F99,#REF!,2,FALSE)," ") -> 
B100: Rogue Carbon Black NEW! | E100: 818172027554 | F100: PCE7554 | G100: $26.50 | H100: $52.99 | J100: $0.00 | K100: Classic | L100: IN STOCK | M100: =+IFERROR(VLOOKUP(F100,#REF!,2,FALSE)," ") -> 
A101: Classic Shield Series v.3 p.2 | B101: Classic Shield Grey NEW! | E101: 818172027530 | F101: PCE7530 | G101: $26.50 | H101: $52.99 | J101: $0.00 | K101: Classic | L101: IN STOCK | M101: =+IFERROR(VLOOKUP(F101,#REF!,2,FALSE)," ") -> 
B102: Classic Shield 3.0 White | E102: 818172024584 | F102: PCE4584 | G102: $26.50 | H102: =IF(G102=0," ",(G102*2)-0.01) -> $52.99 | J102: =I102*G102 -> $0.00 | K102: Classic | L102: IN STOCK
B103: Classic Shield 3.0 Black | E103: 818172024492 | F103: PCE4492 | G103: $26.50 | H103: $52.99 | J103: $0.00 | K103: Classic | L103: IN STOCK | M103: =+IFERROR(VLOOKUP(F103,#REF!,2,FALSE)," ") -> 
B104: Classic Shield 3.0 Espresso | E104: 818172024539 | F104: PCE4539 | G104: $26.50 | H104: $52.99 | J104: $0.00 | K104: Classic | L104: IN STOCK | M104: =+IFERROR(VLOOKUP(F104,#REF!,2,FALSE)," ") -> 
A105: Full Grain Series p. 2 | B105: Vintage Bourbon | E105: 818172024881 | F105: PCP4881 | G105: $42.00 | H105: =IF(G105=0," ",(G105*2)-0.01) -> $83.99 | J105: =I105*G105 -> $0.00 | K105: Classic | L105: IN STOCK | M105: =+IFERROR(VLOOKUP(F105,#REF!,2,FALSE)," ") -> 
B106: Vintage Coal | E106: 818172024874 | F106: PCP4874 | G106: $42.00 | H106: =IF(G106=0," ",(G106*2)-0.01) -> $83.99 | J106: =I106*G106 -> $0.00 | K106: Classic | L106: IN STOCK | M106: =+IFERROR(VLOOKUP(F106,#REF!,2,FALSE)," ") -> 
A107: Vetica Series p.3 | B107: Vetica Brown | E107: 818172024676 | F107: PCE4676 | G107: $26.50 | H107: =IF(G107=0," ",(G107*2)-0.01) -> $52.99 | J107: =I107*G107 -> $0.00 | K107: Classic | L107: IN STOCK
B108: Vetica Black | E108: 818172024706 | F108: PCE4706 | G108: $26.50 | H108: =IF(G108=0," ",(G108*2)-0.01) -> $52.99 | J108: $0.00 | K108: Classic | L108: IN STOCK
B109: Vetica Carbon Black | E109: 818172024638 | F109: PCE4638 | G109: $26.50 | H109: $52.99 | J109: $0.00 | K109: Classic | L109: IN STOCK
A110: Classic Series p.4 | B110: Classic Smooth Black | E110: 818172025246 | F110: PCE5246 | G110: $26.50 | H110: =IF(G110=0," ",(G110*2)-0.01) -> $52.99 | J110: =I110*G110 -> $0.00 | K110: Classic | L110: IN STOCK | M110: =+IFERROR(VLOOKUP(F110,#REF!,2,FALSE)," ") -> 
B111: Classic Ebony | E111: 811685022580 | F111: PCE2580 | G111: $26.50 | H111: =(G111*2)-0.01 -> $52.99 | J111: $0.00 | K111: Classic | L111: IN STOCK | M111: =+IFERROR(VLOOKUP(F111,#REF!,2,FALSE)," ") -> 
B112: Classic Espresso | E112: 811685024065 | F112: PCE4065 | G112: $26.50 | H112: =(G112*2)-0.01 -> $52.99 | J112: $0.00 | K112: Classic | L112: IN STOCK | M112: =+IFERROR(VLOOKUP(F112,#REF!,2,FALSE)," ") -> 
B113: Classic Walnut | E113: 811685022603 | F113: PCE2603 | G113: $26.50 | H113: =(G113*2)-0.01 -> $52.99 | J113: $0.00 | K113: Classic | L113: IN STOCK | M113: =+IFERROR(VLOOKUP(F113,#REF!,2,FALSE)," ") -> 
A114: Crocodile Series p.5 | B114: Crocodile Black | E114: 811685021699 | F114: PCR1699 | G114: $47.50 | H114: =IF(G114=0," ",(G114*2)-0.01) -> $94.99 | J114: =I114*G114 -> $0.00 | K114: Classic | L114: IN STOCK
B115: Crocodile Brown | E115: 811685021736 | F115: PCR1736 | G115: $47.50 | H115: $94.99 | J115: $0.00 | K115: Classic | L115: IN STOCK
A116: Alligator Series p.6 | B116: 2020 Alligator White | E116: 811685021644 | F116: PCA1644 | G116: $47.50 | H116: =IF(G116=0," ",(G116*2)-0.01) -> $94.99 | J116: $0.00 | K116: Classic | L116: IN STOCK | M116: =+IFERROR(VLOOKUP(F116,#REF!,2,FALSE)," ") -> 
B117: 2020 Alligator Navy | E117: 811685021477 | F117: PCA1477 | G117: $47.50 | H117: $94.99 | J117: $0.00 | K117: Classic | L117: IN STOCK | M117: =+IFERROR(VLOOKUP(F117,#REF!,2,FALSE)," ") -> 
B118: 2020 Alligator Coffee | E118: 811685021606 | F118: PCA1606 | G118: $47.50 | H118: $94.99 | J118: $0.00 | K118: Classic | L118: IN STOCK | M118: =+IFERROR(VLOOKUP(F118,#REF!,2,FALSE)," ") -> 
B119: 2020 Alligator Tan | E119: 811685021460 | F119: PCA1460 | G119: $47.50 | H119: $94.99 | J119: $0.00 | K119: Classic | L119: IN STOCK | M119: =+IFERROR(VLOOKUP(F119,#REF!,2,FALSE)," ") -> 
B120: 2020 Alligator Black | E120: 811685021453 | F120: PCA1453 | G120: $47.50 | H120: $94.99 | J120: $0.00 | K120: Classic | L120: IN STOCK | M120: =+IFERROR(VLOOKUP(F120,#REF!,2,FALSE)," ") -> 
B121: 2020 Alligator Grey | E121: 811685021651 | F121: PCA1651 | G121: $47.50 | H121: $94.99 | J121: $0.00 | K121: Classic | L121: LOW INVENTORY | M121: =+IFERROR(VLOOKUP(F121,#REF!,2,FALSE)," ") -> 
A122: Basket Weave Series p.7 | B122: Maduro Weave Black | E122: 818172026717 | F122: PCE6717 | G122: $26.50 | H122: $52.99 | J122: =I122*G122 -> $0.00 | K122: Classic | L122: IN STOCK
B123: Claro Weave Brown | E123: 818172026724 | F123: PCE6724 | G123: $26.50 | H123: $52.99 | J123: $0.00 | K123: Classic | L123: IN STOCK
A124: Camden Series p.7 | B124: Camden Black | E124: 818172025369 | F124: PCX5369 | G124: $26.50 | H124: $52.99 | J124: $0.00 | K124: Classic | L124: IN STOCK
B125: Camden Brown | E125: 818172025376 | F125: PCX5376 | G125: $26.50 | H125: $52.99 | J125: $0.00 | K125: Classic | L125: IN STOCK
A126: Suede Series p. 8 | B126: Suede Tan | E126: 811685020791 | F126: PCE0791 | G126: $26.50 | H126: =IF(G126=0," ",(G126*2)-0.01) -> $52.99 | J126: $0.00 | K126: Classic | L126: IN STOCK | M126: =+IFERROR(VLOOKUP(F126,#REF!,2,FALSE)," ") -> 
B127: Suede Black | E127: 811685020746 | F127: PCE0746 | G127: $26.50 | H127: $52.99 | J127: $0.00 | K127: Classic | L127: IN STOCK | M127: =+IFERROR(VLOOKUP(F127,#REF!,2,FALSE)," ") -> 
B128: Suede Grey | E128: 811685020975 | F128: PCE0975 | G128: $26.50 | H128: $52.99 | J128: $0.00 | K128: Classic | L128: IN STOCK | M128: =+IFERROR(VLOOKUP(F128,#REF!,2,FALSE)," ") -> 
B129: Suede Navy | E129: 811685020821 | F129: PCE0821 | G129: $26.50 | H129: $52.99 | J129: $0.00 | K129: Classic | L129: IN STOCK | M129: =+IFERROR(VLOOKUP(F129,#REF!,2,FALSE)," ") -> 
A130: Braided Series p.9 | B130: Braided Black 2.0 NEW! | E130: 818172028049 | F130: PCD8049 | G130: $26.50 | H130: =IF(G130=0," ",(G130*2)-0.01) -> $52.99 | J130: =I130*G130 -> $0.00 | K130: Classic | L130: IN STOCK MARCH
B131: Braided Grey 2.0 NEW! | E131: 818172028063 | F131: PCD8063 | G131: $26.50 | H131: $52.99 | J131: $0.00 | K131: Classic | L131: IN STOCK MARCH
B132: Braided Navy 2.0 NEW! | E132: 818172028070 | F132: PCD8070 | G132: $26.50 | H132: $52.99 | J132: $0.00 | K132: Classic | L132: IN STOCK MARCH
B133: Braided Tan NEW! | E133: 818172028100 | F133: PCD8100 | G133: $26.50 | H133: $52.99 | J133: $0.00 | K133: Classic | L133: IN STOCK MARCH
B134: Braided Anchor NEW! | E134: 818172028094 | F134: PCD8094 | G134: $26.50 | H134: $52.99 | J134: $0.00 | K134: Classic | L134: IN STOCK MARCH
B135: Braided Charcoal 2.0 NEW! | E135: 818172028056 | F135: PCD8056 | G135: $26.50 | H135: $52.99 | J135: $0.00 | K135: Classic | L135: IN STOCK MARCH
A136: Newport Series V.4 p.10 | B136: Newport Black | E136: 818172026533 | F136: PCN6533 | G136: $21.00 | H136: $41.99 | J136: $0.00 | K136: Classic | L136: IN STOCK | M136: =+IFERROR(VLOOKUP(F136,#REF!,2,FALSE)," ") -> 
B137: Newport Grey | E137: 818172026540 | F137: PCN6540 | G137: $21.00 | H137: $41.99 | J137: $0.00 | K137: Classic | L137: IN STOCK | M137: =+IFERROR(VLOOKUP(F137,#REF!,2,FALSE)," ") -> 
B138: Newport Navy | E138: 818172026557 | F138: PCN6557 | G138: $21.00 | H138: $41.99 | J138: $0.00 | K138: Classic | L138: IN STOCK | M138: =+IFERROR(VLOOKUP(F138,#REF!,2,FALSE)," ") -> 
B139: Newport Tan | E139: 818172026564 | F139: PCN6564 | G139: $21.00 | H139: $41.99 | J139: $0.00 | K139: Classic | L139: IN STOCK | M139: =+IFERROR(VLOOKUP(F139,#REF!,2,FALSE)," ") -> 
B140: Newport National | E140: 811685021408 | F140: PCN1408 | G140: $21.00 | H140: $41.99 | J140: $0.00 | K140: Classic | L140: IN STOCK | M140: =+IFERROR(VLOOKUP(F140,#REF!,2,FALSE)," ") -> 
B141: Newport White | E141: 811685021422 | F141: PCN1422 | G141: $21.00 | H141: $41.99 | J141: $0.00 | K141: Classic | L141: IN STOCK | M141: =+IFERROR(VLOOKUP(F141,#REF!,2,FALSE)," ") -> 
A142: XL Series p. 11 | B142: Classic Espresso XL | E142: 818172022542 | F142: PCE2542 | G142: $31.50 | H142: $62.99 | J142: $0.00 | K142: Classic | L142: IN STOCK
B143: Classic Ebony XL | E143: 818172020500 | F143: PCE0500 | G143: $31.50 | H143: $62.99 | J143: $0.00 | K143: Classic | L143: IN STOCK
A144: Vanguard Series p.12 | B144: Vanguard Slim Black | E144: 818172025055 | F144: PCP5055 | G144: $22.50 | H144: =IF(G144=0," ",(G144*2)-0.01) -> $44.99 | J144: =I144*G144 -> $0.00 | K144: Classic | L144: IN STOCK | M144: =+IFERROR(VLOOKUP(F144,#REF!,2,FALSE)," ") -> 
B145: Vanguard Slim Brown | E145: 818172025062 | F145: PCP5062 | G145: $22.50 | H145: $44.99 | J145: $0.00 | K145: Classic | L145: IN STOCK | M145: =+IFERROR(VLOOKUP(F145,#REF!,2,FALSE)," ") -> 
A146: Workman Series p. 13 | B146: Torque Black NEW! | E146: 818172028131 | F146: PCW8131 | G146: $26.50 | H146: $52.99 | J146: $0.00 | K146: Classic | L146: IN STOCK
B147: Torque Coyote NEW! | E147: 818172028124 | F147: PCW8124 | G147: $26.50 | H147: $52.99 | J147: $0.00 | K147: Classic | L147: IN STOCK
A148: Frances Series p.14 | B148: Frances Brown NEW! | E148: 818172027769 | F148: PCM7769 | G148: $26.50 | H148: =IF(G148=0," ",(G148*2)-0.01) -> $52.99 | J148: $0.00 | K148: Classic | L148: IN STOCK | M148: =+IFERROR(VLOOKUP(F148,#REF!,2,FALSE)," ") -> 
B149: Frances Pink NEW! | E149: 818172027752 | F149: PCM7752 | G149: $26.50 | H149: $52.99 | J149: $0.00 | K149: Classic | L149: IN STOCK
B150: Frances Ebony | E150: 811685020586 | F150: PCM0586 | G150: $26.50 | H150: =IF(G150=0," ",(G150*2)-0.01) -> $52.99 | J150: =I150*G150 -> $0.00 | K150: Classic | L150: IN STOCK
B151: Frances White | E151: 811685020593 | F151: PCM0593 | G151: $26.50 | H151: $52.99 | J151: $0.00 | K151: Classic | L151: IN STOCK | M151: =+IFERROR(VLOOKUP(F151,#REF!,2,FALSE)," ") -> 
A152: Dakota Series p.15 | B152: Dakota Ebony NEW! | E152: 818172028025 | F152: PCK8025 | G152: $21.00 | H152: $41.99 | J152: $0.00 | K152: Classic | L152: IN STOCK
B153: Dakota White NEW! | E153: 818172028001 | F153: PCK8001 | G153: $21.00 | H153: $41.99 | J153: $0.00 | K153: Classic | L153: IN STOCK MARCH
B154: Dakota Brown NEW! | E154: 818172028018 | F154: PCK8018 | G154: $21.00 | H154: $41.99 | J154: $0.00 | K154: Classic | L154: IN STOCK
A155: Legardo Series p.16 | B155: Legardo Brown | E155: 818172024867 | F155: PCI4867 | G155: $21.00 | H155: =IF(G155=0," ",(G155*2)-0.01) -> $41.99 | J155: $0.00 | K155: Classic | L155: IN STOCK | M155: =+IFERROR(VLOOKUP(F155,#REF!,2,FALSE)," ") -> 
B156: Legardo Pink | E156: 818172024836 | F156: PCI4836 | G156: $21.00 | H156: =IF(G156=0," ",(G156*2)-0.01) -> $41.99 | J156: =I156*G156 -> $0.00 | K156: Classic | L156: IN STOCK | M156: =+IFERROR(VLOOKUP(F156,#REF!,2,FALSE)," ") -> 
A157: Madrid Series p.16 | B157: Madrid Black | E157: 818172024959 | F157: PCK4959 | G157: $21.00 | H157: =IF(G157=0," ",(G157*2)-0.01) -> $41.99 | J157: =I157*G157 -> $0.00 | K157: Classic | L157: IN STOCK | M157: =+IFERROR(VLOOKUP(F157,#REF!,2,FALSE)," ") -> 
B158: Madrid White | E158: 818172024966 | F158: PCK4966 | G158: $21.00 | H158: $41.99 | J158: $0.00 | K158: Classic | L158: IN STOCK | M158: =+IFERROR(VLOOKUP(F158,#REF!,2,FALSE)," ") -> 
A159: Miscellaneous Packages p.17 | B159: Portofino Cordovan | E159: 818172022504 | F159: PCP2504 | G159: $35.00 | H159: $69.99 | J159: $0.00 | K159: Classic | L159: IN STOCK | M159: =+IFERROR(VLOOKUP(F159,#REF!,2,FALSE)," ") -> 
B160: Portofino Brown | E160: 818172023747 | F160: PCP3747 | G160: $35.00 | H160: $69.99 | J160: $0.00 | K160: Classic | L160: IN STOCK | M160: =+IFERROR(VLOOKUP(F160,#REF!,2,FALSE)," ") -> 
B161: Houston Black | E161: 818172026762 | F161: PCE6762 | G161: $26.50 | H161: $52.99 | J161: $0.00 | K161: Classic | L161: IN STOCK
B162: Sidney Black | E162: 818172027998 | F162: PCM7998 | G162: $26.50 | H162: $52.99 | J162: $0.00 | K162: Classic | L162: IN STOCK
A163: Heritage Texas Series (not pictured) | B163: Hampton Texas | E163: 818172023600 | F163: PCM3600 | G163: $26.50 | H163: =IF(G163=0," ",(G163*2)-0.01) -> $52.99 | J163: =I163*G163 -> $0.00 | K163: Classic | L163: OUT OF STOCK - FEBRUARY | M163: =+IFERROR(VLOOKUP(F164,#REF!,2,FALSE)," ") -> 
B164: Aston Pewter Texas Etched w/ Smooth Black Strap | E164: 811685028070 | F164: PCH8070 | G164: $28.00 | H164: $55.99 | J164: $0.00 | K164: Classic | L164: IN STOCK | M164: =+IFERROR(VLOOKUP(F165,#REF!,2,FALSE)," ") -> 
B165: Aston Black Texas Etched w/ Smooth Black Strap | E165: 811685028063 | F165: PCB8063 | G165: $28.00 | H165: $55.99 | J165: $0.00 | K165: Classic | L165: LOW INVENTORY | M165: =+IFERROR(VLOOKUP(F166,#REF!,2,FALSE)," ") -> 
B166: Classic Black Series Texas w/ Smooth Black Strap | E166: 811685024638 | F166: PCB4638 | G166: $28.00 | H166: $55.99 | J166: $0.00 | K166: Classic | L166: OUT OF STOCK | M166: =+IFERROR(VLOOKUP(F167,#REF!,2,FALSE)," ") -> 
B167: Go-In! Black Texas w/ Smooth Black Strap | E167: 811685023884 | F167: PGB3884 | G167: $31.50 | H167: $62.99 | J167: $0.00 | K167: Golf | L167: IN STOCK | M167: =+IFERROR(VLOOKUP(F168,#REF!,2,FALSE)," ") -> 
B168: Go-In! Color Texas Heritage White | E168: 818172026342 | F168: PGH6342 | G168: $31.50 | H168: $62.99 | J168: $0.00 | K168: Golf | L168: IN STOCK | M168: =+IFERROR(VLOOKUP(F169,#REF!,2,FALSE)," ") -> 
B169: Go-In! Color Texas Heritage Black | E169: 818172026335 | F169: PGH6335 | G169: $31.50 | H169: $62.99 | J169: $0.00 | K169: Golf | L169: IN STOCK | M169: =+IFERROR(VLOOKUP(F170,#REF!,2,FALSE)," ") -> 
B170: Sleek Crystal Onyx | E170: 811685022238 | F170: PGK2238 | G170: $25.00 | H170: =(G170*2)-0.01 -> $49.99 | J170: $0.00 | K170: Golf | L170: IN STOCK | M170: =+IFERROR(VLOOKUP(F171,#REF!,2,FALSE)," ") -> 
B171: Sleek White | E171: 811685022252 | F171: PGK2252 | G171: $20.00 | H171: $39.99 | J171: $0.00 | K171: Golf | L171: IN STOCK | M171: =+IFERROR(VLOOKUP(F172,#REF!,2,FALSE)," ") -> 
B172: Sleek Crystal White | E172: 811685022269 | F172: PGK2269 | G172: $25.00 | H172: $49.99 | J172: $0.00 | K172: Golf | L172: IN STOCK | M172: =+IFERROR(VLOOKUP(F173,#REF!,2,FALSE)," ") -> 
B173: Gem Ebony | E173: 811685022016 | F173: PGM2016 | G173: $25.00 | H173: $49.99 | J173: $0.00 | K173: Golf | L173: IN STOCK | M173: =+IFERROR(VLOOKUP(F174,#REF!,2,FALSE)," ") -> 
B174: Gem White | E174: 811685022009 | F174: PGM2009 | G174: $25.00 | H174: $49.99 | J174: $0.00 | K174: Golf | L174: IN STOCK | M174: =+IFERROR(VLOOKUP(F175,#REF!,2,FALSE)," ") -> 
B175: "The Match" Deep Sea Navy Go-In! | E175: 818172023112 | F175: MPG3112 | G175: $50.00 | H175: $99.99 | J175: $0.00 | K175: Classic | L175: IN STOCK | M175: =+IFERROR(VLOOKUP(F176,#REF!,2,FALSE)," ") -> 
B176: "The Match" Pitch Black Go-In! | E176: 818172023129 | F176: MPG3129 | G176: $50.00 | H176: $99.99 | J176: $0.00 | K176: Classic | L176: IN STOCK | M176: =+IFERROR(VLOOKUP(F177,#REF!,2,FALSE)," ") -> 
B177: "The Match" Winner White Go-In! | E177: 818172023143 | F177: MPG3143 | G177: $50.00 | H177: $99.99 | J177: $0.00 | K177: Classic | L177: IN STOCK | M177: =+IFERROR(VLOOKUP(F178,#REF!,2,FALSE)," ") -> 
B178: "The Match" Storm Grey Go-In! | E178: 818172023136 | F178: MPG3136 | G178: $50.00 | H178: $99.99 | J178: $0.00 | K178: Classic | L178: IN STOCK | M178: =+IFERROR(VLOOKUP(F179,#REF!,2,FALSE)," ") -> 
B179: Deep Sea Navy Cap w/ Nexbelt logo | E179: 818172021583 | F179: HCN1583 | G179: $16.00 | H179: $31.99 | J179: $0.00 | K179: Classic | L179: IN STOCK | M179: =+IFERROR(VLOOKUP(F180,#REF!,2,FALSE)," ") -> 
B180: Pitch Black Cap Nexbelt logo | E180: 818172021606 | F180: HCN1606 | G180: $16.00 | H180: $31.99 | J180: $0.00 | K180: Classic | L180: IN STOCK | M180: =+IFERROR(VLOOKUP(F181,#REF!,2,FALSE)," ") -> 
B181: Storm Grey Cap Nexbelt logo | E181: 818172021590 | F181: HCN1590 | G181: $16.00 | H181: $31.99 | J181: $0.00 | K181: Classic | L181: IN STOCK | M181: =+IFERROR(VLOOKUP(F182,#REF!,2,FALSE)," ") -> 
B182: Winner White Cap Nexbelt logo | E182: 818172021613 | F182: HCN1613 | G182: $16.00 | H182: $31.99 | J182: $0.00 | K182: Classic | L182: IN STOCK | M182: =+IFERROR(VLOOKUP(F183,#REF!,2,FALSE)," ") -> 
B183: Pitch Black Beanie | E183: 818172021682 | F183: HBN1682 | G183: $9.00 | H183: $17.99 | J183: $0.00 | K183: Classic | L183: IN STOCK | M183: =+IFERROR(VLOOKUP(F184,#REF!,2,FALSE)," ") -> 
B184: Deep Sea Navy Beanie | E184: 818172021668 | F184: HBN1668 | G184: $9.00 | H184: $17.99 | J184: $0.00 | K184: Classic | L184: IN STOCK | M184: =+IFERROR(VLOOKUP(F185,#REF!,2,FALSE)," ") -> 
B185: Storm Grey Beanie | E185: 818172021675 | F185: HBN1675 | G185: $9.00 | H185: $17.99 | J185: $0.00 | K185: Classic | L185: IN STOCK | M185: =+IFERROR(VLOOKUP(F190,#REF!,2,FALSE)," ") -> 
B186: Winner White Beanie | E186: 818172021699 | F186: HBN1699 | G186: $9.00 | H186: =(G186*2)-0.01 -> $17.99 | J186: =I186*G186 -> $0.00 | K186: Classic | L186: IN STOCK
B187: Go-In! Match Belt Pitch Black | F187: PGG3044 | G187: $31.50 | H187: $62.99 | J187: $0.00 | K187: Golf | L187: IN STOCK
B188: Go-In! Match Belt Winner White | F188: PGG3051 | G188: $31.50 | H188: $62.99 | J188: $0.00 | K188: Golf | L188: IN STOCK
B189: Go-In! Match Belt Storm Grey | F189: PGG3068 | G189: $31.50 | H189: $62.99 | J189: $0.00 | K189: Golf | L189: IN STOCK
B190: Go-In! Match Belt Deep Sea Navy | F190: PGG3204 | G190: $31.50 | H190: $62.99 | J190: $0.00 | K190: Golf | L190: IN STOCK | M190: =+IFERROR(VLOOKUP(#REF!,#REF!,2,FALSE)," ") -> 
A191: Separate Buckles | B191: Buckle: Platinum X Factor Fast Eddie NEW! | E191: 818172027479 | F191: BGX7479 | G191: $13.50 | H191: $26.99 | J191: $0.00 | K191: Buckle | L191: IN STOCK | M191: =+IFERROR(VLOOKUP(F196,#REF!,2,FALSE)," ") -> 
B192: Buckle: Lucky Blue X Factor Fast Eddie NEW! | E192: 818172027486 | F192: BGX7486 | G192: $13.50 | H192: =(G192*2)-0.01 -> $26.99 | J192: =I192*G192 -> $0.00 | K192: Buckle | L192: IN STOCK
B193: Buckle: Xavier X Factor Fast Eddie NEW! | E193: 818172028186 | F193: BGX8186 | G193: $13.50 | H193: $26.99 | J193: $0.00 | K193: Buckle | L193: IN STOCK APRIL
B194: Buckle: Go-In! Shield Satin Nickel NEW! | E194: 818172027462 | F194: BGG7462 | G194: $11.50 | H194: $22.99 | J194: $0.00 | K194: Buckle | L194: IN STOCK
B195: Buckle: Go-In! Shield Nickel Beveled | E195: 818172024508 | F195: BGG4508 | G195: $11.50 | H195: =(G195*2)-0.01 -> $22.99 | J195: =I195*G195 -> $0.00 | K195: Buckle | L195: IN STOCK
B196: Buckle: Classic Shield Nickel Beveled | E196: 818172024485 | F196: BCE4485 | G196: $10.50 | H196: =(G196*2)-0.01 -> $20.99 | J196: =I196*G196 -> $0.00 | K196: Buckle | L196: IN STOCK | M196: =+IFERROR(VLOOKUP(F197,#REF!,2,FALSE)," ") -> 
B197: Buckle: Classic Shield Gunmetal Beveled | E197: 818172025413 | F197: BCE5413 | G197: $10.50 | H197: $20.99 | J197: $0.00 | K197: Buckle | L197: IN STOCK | M197: =+IFERROR(VLOOKUP(F198,#REF!,2,FALSE)," ") -> 
B198: Buckle: Go-In! Shield Gunmetal Beveled | E198: 818172025406 | F198: BGG5406 | G198: $11.50 | H198: $22.99 | J198: $0.00 | K198: Buckle | L198: IN STOCK | M198: =+IFERROR(VLOOKUP(F201,#REF!,2,FALSE)," ") -> 
B199: Buckle: Go-In! Stealth Beveled | E199: 818172025383 | F199: BGG5383 | G199: $11.50 | H199: =(G199*2)-0.01 -> $22.99 | J199: =I199*G199 -> $0.00 | K199: Buckle | L199: OUT OF STOCK | M199: =+IFERROR(VLOOKUP(F199,#REF!,2,FALSE)," ") -> 
B200: Buckle: Classic Stealth Beveled | E200: 818172025390 | F200: BCE5390 | G200: $10.50 | H200: =(G200*2)-0.01 -> $20.99 | J200: =I200*G200 -> $0.00 | K200: Buckle | L200: IN STOCK - LOW INVENTORY | M200: =+IFERROR(VLOOKUP(#REF!,#REF!,2,FALSE)," ") -> 
B201: Buckle: Fast Eddie Beveled Nickel | E201: 818172024591 | F201: BGF4591 | G201: $13.50 | H201: =(G201*2)-0.01 -> $26.99 | J201: =I201*G201 -> $0.00 | K201: Buckle | L201: OUT OF STOCK | M201: =+IFERROR(VLOOKUP(F200,#REF!,2,FALSE)," ") -> 
B202: Buckle: Houston Brushed Nickel | E202: 811685027417 | F202: BCS7417 | G202: $10.50 | H202: =(G202*2)-0.01 -> $20.99 | J202: =I202*G202 -> $0.00 | K202: Buckle | L202: IN STOCK - LOW INVENTORY | M202: =+IFERROR(VLOOKUP(#REF!,#REF!,2,FALSE)," ") -> 
B203: Buckle: Go-In! Beveled USA Black | E203: 818172025901 | F203: BGB5901 | G203: $11.50 | H203: =(G203*2)-0.01 -> $22.99 | J203: $0.00 | K203: Buckle | L203: IN STOCK | M203: =+IFERROR(VLOOKUP(F204,#REF!,2,FALSE)," ") -> 
B204: Buckle: Classic Beveled USA Black | E204: 818172025918 | F204: BCB5918 | G204: $10.50 | H204: $20.99 | J204: $0.00 | K204: Buckle | L204: IN STOCK | M204: =+IFERROR(VLOOKUP(F205,#REF!,2,FALSE)," ") -> 
B205: Buckle: Go-In! Beveled USA Gunmetal | E205: 818172025888 | F205: BGH5888 | G205: $11.50 | H205: $22.99 | J205: $0.00 | K205: Buckle | L205: IN STOCK | M205: =+IFERROR(VLOOKUP(F206,#REF!,2,FALSE)," ") -> 
B206: Buckle: Classic Beveled USA Gunmetal | E206: 818172025895 | F206: BCH5895 | G206: $10.50 | H206: $20.99 | J206: $0.00 | K206: Buckle | L206: IN STOCK | M206: =+IFERROR(VLOOKUP(F207,#REF!,2,FALSE)," ") -> 
B207: Buckle: Go-In! Beveled USA Color | E207: 818172025444 | F207: BGH5444 | G207: $11.50 | H207: $22.99 | J207: $0.00 | K207: Buckle | L207: IN STOCK | M207: =+IFERROR(VLOOKUP(F208,#REF!,2,FALSE)," ") -> 
... 95 more rows

Sheet Flag Entry Sheet
P2: CODE STRING ANSWER:
B3: Product | C3: Buckle Type | D3: Flag | E3: Strap | F3: Qty | G3: Check | U3: Description | V3: UPC | W3: Item Code | X3: Price | Y3: MSRP
P4: =IF(ISBLANK(B4),"Blank",B4&" "&C4&" "&D4&" "&E4) -> Blank | U4: =IFERROR(VLOOKUP(P4,Data!$A$2:$J$76,6,FALSE),"#N/A") -> - | V4: =IFERROR(VLOOKUP(P4,Data!$A$2:$J$76,7,FALSE),"#N/A") -> - | W4: =IFERROR(VLOOKUP(P4,Data!$A$2:$J$76,8,FALSE),"#N/A") -> - | X4: =IFERROR(VLOOKUP(P4,Data!$A$2:$J$76,9,FALSE),"#N/A") -> 0 | Y4: =IFERROR(VLOOKUP(P4,Data!$A$2:$J$76,10,FALSE),"#N/A") -> -
P5: =IF(ISBLANK(B5),"Blank",B5&" "&C5&" "&D5&" "&E5) -> Blank | U5: =IFERROR(VLOOKUP(P5,Data!$A$2:$J$76,6,FALSE),"#N/A") -> - | V5: =IFERROR(VLOOKUP(P5,Data!$A$2:$J$76,7,FALSE),"#N/A") -> - | W5: =IFERROR(VLOOKUP(P5,Data!$A$2:$J$76,8,FALSE),"#N/A") -> - | X5: =IFERROR(VLOOKUP(P5,Data!$A$2:$J$76,9,FALSE),"#N/A") -> 0 | Y5: =IFERROR(VLOOKUP(P5,Data!$A$2:$J$76,10,FALSE),"#N/A") -> -
G6: =IF(U6="#N/A","Combination Not Available"," ") ->  | P6: Blank | U6: =IFERROR(VLOOKUP(P6,Data!$A$2:$J$76,6,FALSE),"#N/A") -> - | V6: =IFERROR(VLOOKUP(P6,Data!$A$2:$J$76,7,FALSE),"#N/A") -> - | W6: =IFERROR(VLOOKUP(P6,Data!$A$2:$J$76,8,FALSE),"#N/A") -> - | X6: =IFERROR(VLOOKUP(P6,Data!$A$2:$J$76,9,FALSE),"#N/A") -> 0 | Y6: =IFERROR(VLOOKUP(P6,Data!$A$2:$J$76,10,FALSE),"#N/A") -> -
P7: Blank | U7: =IFERROR(VLOOKUP(P7,Data!$A$2:$J$76,6,FALSE),"#N/A") -> - | V7: =IFERROR(VLOOKUP(P7,Data!$A$2:$J$76,7,FALSE),"#N/A") -> - | W7: =IFERROR(VLOOKUP(P7,Data!$A$2:$J$76,8,FALSE),"#N/A") -> - | X7: =IFERROR(VLOOKUP(P7,Data!$A$2:$J$76,9,FALSE),"#N/A") -> 0 | Y7: =IFERROR(VLOOKUP(P7,Data!$A$2:$J$76,10,FALSE),"#N/A") -> -
P8: Blank | U8: =IFERROR(VLOOKUP(P8,Data!$A$2:$J$76,6,FALSE),"#N/A") -> - | V8: =IFERROR(VLOOKUP(P8,Data!$A$2:$J$76,7,FALSE),"#N/A") -> - | W8: =IFERROR(VLOOKUP(P8,Data!$A$2:$J$76,8,FALSE),"#N/A") -> - | X8: =IFERROR(VLOOKUP(P8,Data!$A$2:$J$76,9,FALSE),"#N/A") -> 0 | Y8: =IFERROR(VLOOKUP(P8,Data!$A$2:$J$76,10,FALSE),"#N/A") -> -
P9: Blank | U9: =IFERROR(VLOOKUP(P9,Data!$A$2:$J$76,6,FALSE),"#N/A") -> - | V9: =IFERROR(VLOOKUP(P9,Data!$A$2:$J$76,7,FALSE),"#N/A") -> - | W9: =IFERROR(VLOOKUP(P9,Data!$A$2:$J$76,8,FALSE),"#N/A") -> - | X9: =IFERROR(VLOOKUP(P9,Data!$A$2:$J$76,9,FALSE),"#N/A") -> 0 | Y9: =IFERROR(VLOOKUP(P9,Data!$A$2:$J$76,10,FALSE),"#N/A") -> -
P10: Blank | U10: =IFERROR(VLOOKUP(P10,Data!$A$2:$J$76,6,FALSE),"#N/A") -> - | V10: =IFERROR(VLOOKUP(P10,Data!$A$2:$J$76,7,FALSE),"#N/A") -> - | W10: =IFERROR(VLOOKUP(P10,Data!$A$2:$J$76,8,FALSE),"#N/A") -> - | X10: =IFERROR(VLOOKUP(P10,Data!$A$2:$J$76,9,FALSE),"#N/A") -> 0 | Y10: =IFERROR(VLOOKUP(P10,Data!$A$2:$J$76,10,FALSE),"#N/A") -> -
P11: Blank | U11: =IFERROR(VLOOKUP(P11,Data!$A$2:$J$76,6,FALSE),"#N/A") -> - | V11: =IFERROR(VLOOKUP(P11,Data!$A$2:$J$76,7,FALSE),"#N/A") -> - | W11: =IFERROR(VLOOKUP(P11,Data!$A$2:$J$76,8,FALSE),"#N/A") -> - | X11: =IFERROR(VLOOKUP(P11,Data!$A$2:$J$76,9,FALSE),"#N/A") -> 0 | Y11: =IFERROR(VLOOKUP(P11,Data!$A$2:$J$76,10,FALSE),"#N/A") -> -
P12: Blank | U12: =IFERROR(VLOOKUP(P12,Data!$A$2:$J$76,6,FALSE),"#N/A") -> - | V12: =IFERROR(VLOOKUP(P12,Data!$A$2:$J$76,7,FALSE),"#N/A") -> - | W12: =IFERROR(VLOOKUP(P12,Data!$A$2:$J$76,8,FALSE),"#N/A") -> - | X12: =IFERROR(VLOOKUP(P12,Data!$A$2:$J$76,9,FALSE),"#N/A") -> 0 | Y12: =IFERROR(VLOOKUP(P12,Data!$A$2:$J$76,10,FALSE),"#N/A") -> -
P13: Blank | U13: =IFERROR(VLOOKUP(P13,Data!$A$2:$J$76,6,FALSE),"#N/A") -> - | V13: =IFERROR(VLOOKUP(P13,Data!$A$2:$J$76,7,FALSE),"#N/A") -> - | W13: =IFERROR(VLOOKUP(P13,Data!$A$2:$J$76,8,FALSE),"#N/A") -> - | X13: =IFERROR(VLOOKUP(P13,Data!$A$2:$J$76,9,FALSE),"#N/A") -> 0 | Y13: =IFERROR(VLOOKUP(P13,Data!$A$2:$J$76,10,FALSE),"#N/A") -> -
B14: Product List | C14: Buckle List | D14: Flag List | E14: Strap List | P14: =(B14&" "&C14&" "&D14&" "&E14) -> Product List Buckle List Flag List Strap List
B15: Package | C15: Go-In! | D15: Australia | E15: Smooth Black | P15: Package Go-In! Australia Smooth Black
B16: Buckle Only | C16: Classic | D16: Canada | E16: Smooth White | P16: Buckle Only Classic Canada Smooth White
D17: Canada - Black Series | E17: Walnut | P17: Canada - Black Series Walnut
D18: Great Britain | P18: Great Britain
D19: Great Britain - Black Series | P19: Great Britain - Black Series
D20: Ireland | P20: Ireland
D21: Italy | P21: Italy
D22: Mexico | P22: Mexico
D23: Scotland | P23: Scotland
D24: Texas | P24: Texas
D25: Texas - Black Series | P25: Texas - Black Series
D26: Texas - Aston Pewter | P26: Texas - Aston Pewter
D27: USA | P27: USA
D28: USA - Black Series | P28: USA - Black Series
B40: ABOVE SELECTIONS CREATE A UNIQUE STRING OF CHARACTERS THAT CAN MATCH AN IDENTICAL STRING OIN THE DATA PAGE | P40: ABOVE SELECTIONS CREATE A UNIQUE STRING OF CHARACTERS THAT CAN MATCH AN IDENTICAL STRING OIN THE DATA PAGE
B41: THE ORDER FORM CAN LOOK TO SEE IF THERE ARE SELECTIONS ABOVE AND THEN MATCH THE STRING ABOVE WITH A STRING ON | P41: THE ORDER FORM CAN LOOK TO SEE IF THERE ARE SELECTIONS ABOVE AND THEN MATCH THE STRING ABOVE WITH A STRING ON
B42: THE DATA SHEET AND RETURN AN ENTRY THAT PULLS THE DATA TO THE FORM | P42: THE DATA SHEET AND RETURN AN ENTRY THAT PULLS THE DATA TO THE FORM

Sheet Rowland Thomas Entry Sheet
B2: Order Details:
B3: Description | C3: UPC Code | D3: Item Code | E3: Price | F3: MSRP | G3: Qty | H3: Total | I3: Summary
A4: Rowland Thomas | B4: USA Premium Rowland Thomas Serpent Black/Taupe (Cut to size, up to 45") | C4: 818172022993 | D4: PCU7073 | E4: $115.00 | F4: $230.00 | H4: =G4*E4 -> $0.00 | I4: Add'tl
B5: USA Premium Rowland Thomas Serpent Black/Grey (Cut to size, up to 45") | C5: 818172022993 | D5: PCU7066 | E5: $115.00 | F5: $230.00 | H5: =G5*E5 -> $0.00 | I5: Add'tl
B6: USA Premium Rowland Thomas Brown Kayiman (Cut to size, up to 45") | C6: 818172022955 | D6: PCU7080 | E6: $100.00 | F6: $200.00 | H6: =G6*E6 -> $0.00 | I6: Add'tl
B7: USA Premium Rowland Thomas Black/Blue Kayiman (Cut to size, up to 45") | C7: 818172022962 | D7: PCU7103 | E7: $100.00 | F7: $200.00 | H7: $0.00 | I7: Add'tl
B8: USA Premium Rowland Thomas Herrington Brown (Cut to size, up to 45") | C8: 818172022979 | D8: PCU7097 | E8: $90.00 | F8: $180.00 | H8: $0.00 | I8: Add'tl
B9: USA Premium Rowland Thomas Herrington Black (Cut to size, up to 45") | C9: 818172022986 | D9: PCU7110 | E9: $90.00 | F9: $180.00 | H9: $0.00 | I9: Add'tl
B10: USA Premium Rowland Thomas Chordata Grey (Cut to size, up to 45") | C10: 818172027899 | D10: PCU7899 | E10: $100.00 | F10: $200.00 | H10: $0.00 | I10: Add'tl
B11: USA Premium Rowland Thomas Chordata Brown (Cut to size, up to 45") | C11: 818172027912 | D11: PCU7912 | E11: $100.00 | F11: $200.00 | H11: $0.00 | I11: Add'tl

Sheet Data (hidden)
A1: Code String | B1: Product | C1: Buckle Type | D1: Flag | E1: Strap | F1: Description | G1: UPC | H1: Item Code | I1: Price | J1: MSRP | K1: Qty | L1: Total
A2: =(B2&" "&C2&" "&D2&" "&E2) -> Buckle Only Go-In! USA | B2: Buckle Only | C2: Go-In! | D2: USA | F2: Go-In! Heritage USA Buckle | G2: 811685021071 | H2: BGH1071 | I2: $11.00 | J2: $21.99 | L2: =K2*I2 -> $0.00
A3: =(B3&" "&C3&" "&D3&" "&E3) -> Buckle Only Go-In! Canada | B3: Buckle Only | C3: Go-In! | D3: Canada | F3: Go-In! Heritage Canada Buckle | G3: 811685021088 | H3: BGH1088 | I3: $11.00 | J3: $21.99 | L3: =K3*I3 -> $0.00
A4: Buckle Only Go-In! Italy | B4: Buckle Only | C4: Go-In! | D4: Italy | F4: Go-In! Heritage Italy Buckle | G4: 811685023969 | H4: BGH3969 | I4: $11.00 | J4: $21.99 | L4: $0.00
A5: Buckle Only Go-In! Ireland | B5: Buckle Only | C5: Go-In! | D5: Ireland | F5: Go-In! Heritage Ireland Buckle | G5: 811685024331 | H5: BGH4331 | I5: $11.00 | J5: $21.99 | L5: $0.00
A6: Buckle Only Go-In! Great Britain | B6: Buckle Only | C6: Go-In! | D6: Great Britain | F6: Go-In! Heritage Great Britain Buckle | G6: 811685024348 | H6: BGH4348 | I6: $11.00 | J6: $21.99 | L6: $0.00
A7: Buckle Only Go-In! Texas | B7: Buckle Only | C7: Go-In! | D7: Texas | F7: Go-In! Heritage Texas Buckle | G7: 811685024423 | H7: BGH4423 | I7: $11.00 | J7: $21.99 | L7: $0.00
A8: Buckle Only Go-In! Scotland | B8: Buckle Only | C8: Go-In! | D8: Scotland | F8: Go-In! Heritage Scotland Buckle | G8: 811685024577 | H8: BGH4577 | I8: $11.00 | J8: $21.99 | L8: $0.00
A9: Buckle Only Go-In! USA - Black Series | B9: Buckle Only | C9: Go-In! | D9: USA - Black Series | F9: Go-In! Black Series USA Buckle | G9: 811685025017 | H9: BGB5017 | I9: $11.00 | J9: $21.99 | L9: $0.00
A10: Buckle Only Go-In! Great Britain - Black Series | B10: Buckle Only | C10: Go-In! | D10: Great Britain - Black Series | F10: Go-In! Black Series Great Britain Buckle | G10: 811685025086 | H10: BGB5086 | I10: $11.00 | J10: $21.99 | L10: $0.00
A11: Buckle Only Go-In! Texas - Black Series | B11: Buckle Only | C11: Go-In! | D11: Texas - Black Series | F11: Go-In! Black Series Texas Buckle | G11: 811685025185 | H11: BGB5185 | I11: $11.00 | J11: $21.99 | L11: $0.00
A12: Buckle Only Go-In! Canada - Black Series | B12: Buckle Only | C12: Go-In! | D12: Canada - Black Series | F12: Go-In! Black Series Canada Buckle | G12: 811685025628 | H12: BGB5628 | I12: $11.00 | J12: $21.99 | L12: $0.00
A13: Buckle Only Go-In! Australia | B13: Buckle Only | C13: Go-In! | D13: Australia | F13: Go-In! Heritage Australia Buckle | G13: 811685024393 | H13: BGH4393 | I13: $11.00 | J13: $21.99 | L13: $0.00
A14: Buckle Only Go-In! Mexico | B14: Buckle Only | C14: Go-In! | D14: Mexico | F14: Go-In! Heritage Mexico Buckle | G14: 811685021095 | H14: BGH1095 | I14: $11.00 | J14: $21.99 | L14: $0.00
A15: Buckle Only Classic USA | B15: Buckle Only | C15: Classic | D15: USA | F15: Classic Heritage USA Buckle | G15: 811685021613 | H15: BCH1613 | I15: $10.00 | J15: $19.99 | L15: $0.00
A16: Buckle Only Classic Italy | B16: Buckle Only | C16: Classic | D16: Italy | F16: Classic Heritage Italy Buckle | G16: 811685025345 | H16: BCH5345 | I16: $10.00 | J16: $19.99 | L16: $0.00
A17: Buckle Only Classic Ireland | B17: Buckle Only | C17: Classic | D17: Ireland | F17: Classic Heritage Ireland Buckle | G17: 811685025369 | H17: BCH5369 | I17: $10.00 | J17: $19.99 | L17: $0.00
A18: Buckle Only Classic Canada | B18: Buckle Only | C18: Classic | D18: Canada | F18: Classic Heritage Canada Buckle | G18: 811685025697 | H18: BCH5697 | I18: $10.00 | J18: $19.99 | L18: $0.00
A19: Buckle Only Classic Great Britain | B19: Buckle Only | C19: Classic | D19: Great Britain | F19: Classic Heritage Great Britain Buckle | G19: 811685027561 | H19: BCH7561 | I19: $10.00 | J19: $19.99 | L19: $0.00
A20: Buckle Only Classic Texas | B20: Buckle Only | C20: Classic | D20: Texas | F20: Classic Heritage Texas Buckle | G20: 811685027653 | H20: BCH7653 | I20: $10.00 | J20: $19.99 | L20: $0.00
A21: Buckle Only Classic USA - Black Series | B21: Buckle Only | C21: Classic | D21: USA - Black Series | F21: Classic Black Series USA Buckle | G21: 811685024980 | H21: BCB4980 | I21: $10.00 | J21: $19.99 | L21: $0.00
A22: Buckle Only Classic Texas - Black Series | B22: Buckle Only | C22: Classic | D22: Texas - Black Series | F22: Classic Black Series Texas Buckle | G22: 811685025444 | H22: BCB5444 | I22: $10.00 | J22: $19.99 | L22: $0.00
A23: Buckle Only Classic Texas - Aston Pewter | B23: Buckle Only | C23: Classic | D23: Texas - Aston Pewter | F23: Classic Aston Pewter Texas Buckle | G23: 811685028049 | H23: BCH8049 | I23: $12.50 | J23: $24.99 | L23: $0.00
A24: Buckle Only Classic Great Britain - Black Series | B24: Buckle Only | C24: Classic | D24: Great Britain - Black Series | F24: Classic Black Series Great Britain Buckle | G24: 811685025451 | H24: BCB5451 | I24: $10.00 | J24: $19.99 | L24: $0.00
A25: Buckle Only Classic Canada - Black Series | B25: Buckle Only | C25: Classic | D25: Canada - Black Series | F25: Classic Black Series Canada Buckle | G25: 811685025482 | H25: BCB5482 | I25: $10.00 | J25: $19.99 | L25: $0.00
A26: Buckle Only Classic Australia | B26: Buckle Only | C26: Classic | D26: Australia | F26: Classic Heritage Australia Buckle | G26: 818172020760 | H26: BCH0760 | I26: $10.00 | J26: $19.99 | L26: $0.00
A27: Buckle Only Classic Mexico | B27: Buckle Only | C27: Classic | D27: Mexico | F27: Classic Heritage Mexico Buckle | G27: 818172020753 | H27: BCH0753 | I27: $10.00 | J27: $19.99 | L27: $0.00
A28: Buckle Only Classic Scotland | B28: Buckle Only | C28: Classic | D28: Scotland | F28: Classic Heritage Scotland Buckle | G28: 818172020821 | H28: BCH0821 | I28: $10.00 | J28: $19.99 | L28: $0.00
A29: Package Go-In! Australia Smooth White | B29: Package | C29: Go-In! | D29: Australia | E29: Smooth White | F29: Go-In! Heritage Australia White Strap | G29: 811685022030 | H29: PGH2030 | I29: $30.00 | J29: $59.99 | L29: $0.00
A30: Package Go-In! Australia Smooth Black | B30: Package | C30: Go-In! | D30: Australia | E30: Smooth Black | F30: Go-In! Heritage Australia Black Strap | G30: 811685022825 | H30: PGH2825 | I30: $30.00 | J30: $59.99 | L30: $0.00
A31: Package Go-In! Great Britain Smooth White | B31: Package | C31: Go-In! | D31: Great Britain | E31: Smooth White | F31: Go-In! Heritage Great Britain White Strap | G31: 811685022047 | H31: PGH2047 | I31: $30.00 | J31: $59.99 | L31: $0.00
A32: Package Go-In! Great Britain Smooth Black | B32: Package | C32: Go-In! | D32: Great Britain | E32: Smooth Black | F32: Go-In! Heritage Great Britain Black Strap | G32: 811685022917 | H32: PGH2917 | I32: $30.00 | J32: $59.99 | L32: $0.00
A33: Package Go-In! Canada Smooth White | B33: Package | C33: Go-In! | D33: Canada | E33: Smooth White | F33: Go-In! Heritage Canada White Strap | G33: 811685022054 | H33: PGH2054 | I33: $30.00 | J33: $59.99 | L33: $0.00
A34: Package Go-In! Canada Smooth Black | B34: Package | C34: Go-In! | D34: Canada | E34: Smooth Black | F34: Go-In! Heritage Canada Black Strap | G34: 811685022771 | H34: PGH2771 | I34: $30.00 | J34: $59.99 | L34: $0.00
A35: Package Go-In! USA Smooth White | B35: Package | C35: Go-In! | D35: USA | E35: Smooth White | F35: Go-In! Heritage USA White Strap | G35: 811685022115 | H35: PGH2115 | I35: $30.00 | J35: $59.99 | L35: $0.00
A36: Package Go-In! USA Smooth Black | B36: Package | C36: Go-In! | D36: USA | E36: Smooth Black | F36: Go-In! Heritage USA Black Strap | G36: 811685022733 | H36: PGH2733 | I36: $30.00 | J36: $59.99 | L36: $0.00
A37: Package Go-In! Italy Smooth White | B37: Package | C37: Go-In! | D37: Italy | E37: Smooth White | F37: Go-In! Heritage Italy White Strap | G37: 811685023013 | H37: PGH3013 | I37: $30.00 | J37: $59.99 | L37: $0.00
A38: Package Go-In! Italy Smooth Black | B38: Package | C38: Go-In! | D38: Italy | E38: Smooth Black | F38: Go-In! Heritage Italy Black Strap | G38: 811685022726 | H38: PGH2726 | I38: $30.00 | J38: $59.99 | L38: $0.00
A39: Package Go-In! Scotland Smooth White | B39: Package | C39: Go-In! | D39: Scotland | E39: Smooth White | F39: Go-In! Heritage Scotland White Strap | G39: 811685023037 | H39: PGH3037 | I39: $30.00 | J39: $59.99 | L39: $0.00
A40: Package Go-In! Scotland Smooth Black | B40: Package | C40: Go-In! | D40: Scotland | E40: Smooth Black | F40: Go-In! Heritage Scotland Black Strap | G40: 811685022757 | H40: PGH2757 | I40: $30.00 | J40: $59.99 | L40: $0.00
A41: Package Go-In! Texas Smooth White | B41: Package | C41: Go-In! | D41: Texas | E41: Smooth White | F41: Go-In! Heritage Texas White Strap | G41: 811685023044 | H41: PGH3044 | I41: $30.00 | J41: $59.99 | L41: $0.00
A42: Package Go-In! Texas Smooth Black | B42: Package | C42: Go-In! | D42: Texas | E42: Smooth Black | F42: Go-In! Heritage Texas Black Strap | G42: 811685022764 | H42: PGH2764 | I42: $30.00 | J42: $59.99 | L42: $0.00
A43: Package Go-In! Ireland Smooth White | B43: Package | C43: Go-In! | D43: Ireland | E43: Smooth White | F43: Go-In! Heritage Ireland White Strap | G43: 811685023150 | H43: PGH3150 | I43: $30.00 | J43: $59.99 | L43: $0.00
A44: Package Go-In! Ireland Smooth Black | B44: Package | C44: Go-In! | D44: Ireland | E44: Smooth Black | F44: Go-In! Heritage Ireland Black Strap | G44: 811685022931 | H44: PGH2931 | I44: $30.00 | J44: $59.99 | L44: $0.00
A45: Package Go-In! Mexico Smooth White | B45: Package | C45: Go-In! | D45: Mexico | E45: Smooth White | F45: Go-In! Heritage Mexico White Strap | G45: 811685023174 | H45: PGH3174 | I45: $30.00 | J45: $59.99 | L45: $0.00
A46: Package Go-In! Mexico Smooth Black | B46: Package | C46: Go-In! | D46: Mexico | E46: Smooth Black | F46: Go-In! Heritage Mexico Black Strap | G46: 811685022962 | H46: PGH2962 | I46: $30.00 | J46: $59.99 | L46: $0.00
A47: Package Go-In! USA - Black Series Smooth Black | B47: Package | C47: Go-In! | D47: USA - Black Series | E47: Smooth Black | F47: Go-In! Black Series USA | G47: 811685023877 | H47: PGB3877 | I47: $30.00 | J47: $59.99 | L47: $0.00
A48: Package Go-In! Texas - Black Series Smooth Black | B48: Package | C48: Go-In! | D48: Texas - Black Series | E48: Smooth Black | F48: Go-In! Black Series Texas | G48: 811685023884 | H48: PGB3884 | I48: $30.00 | J48: $59.99 | L48: $0.00
A49: Package Go-In! Canada - Black Series Smooth Black | B49: Package | C49: Go-In! | D49: Canada - Black Series | E49: Smooth Black | F49: Go-In! Black Series Canada | G49: 811685023891 | H49: PGB3891 | I49: $30.00 | J49: $59.99 | L49: $0.00
A50: Package Go-In! Great Britain - Black Series Smooth Black | B50: Package | C50: Go-In! | D50: Great Britain - Black Series | E50: Smooth Black | F50: Go-In! Black Series Great Britain | G50: 811685025062 | H50: PGB5062 | I50: $30.00 | J50: $59.99 | L50: $0.00
A51: Package Go-In! USA - Black Series Walnut | B51: Package | C51: Go-In! | D51: USA - Black Series | E51: Walnut | F51: Go-In! Black Series USA Walnut Strap | G51: 811685027998 | H51: PGB7998 | I51: $30.00 | J51: $59.99 | L51: $0.00
A52: Package Classic USA Smooth White | B52: Package | C52: Classic | D52: USA | E52: Smooth White | F52: Classic Heritage USA White Strap | G52: 811685025512 | H52: PCH5512 | I52: $28.00 | J52: $49.99 | L52: $0.00
A53: Package Classic USA Smooth Black | B53: Package | C53: Classic | D53: USA | E53: Smooth Black | F53: Classic Heritage USA Black Strap | G53: 811685025352 | H53: PCH5352 | I53: $28.00 | J53: $49.99 | L53: $0.00
A54: Package Classic Australia Smooth White | B54: Package | C54: Classic | D54: Australia | E54: Smooth White | F54: Classic Heritage Australia White Strap | G54: 818172020777 | H54: PCH0777 | I54: $28.00 | J54: $49.99 | L54: $0.00
A55: Package Classic Australia Smooth Black | B55: Package | C55: Classic | D55: Australia | E55: Smooth Black | F55: Classic Heritage Australia Black Strap | G55: 818172020784 | H55: PCH0784 | I55: $28.00 | J55: $49.99 | L55: $0.00
A56: Package Classic Canada Smooth White | B56: Package | C56: Classic | D56: Canada | E56: Smooth White | F56: Classic Heritage Canada White Strap | G56: 811685025420 | H56: PCH5420 | I56: $28.00 | J56: $49.99 | L56: $0.00
A57: Package Classic Canada Smooth Black | B57: Package | C57: Classic | D57: Canada | E57: Smooth Black | F57: Classic Heritage Canada Black Strap | G57: 811685025383 | H57: PCH5383 | I57: $28.00 | J57: $49.99 | L57: $0.00
A58: Package Classic Great Britain Smooth White | B58: Package | C58: Classic | D58: Great Britain | E58: Smooth White | F58: Classic Heritage Great Britain White Strap | G58: 811685025437 | H58: PCH5437 | I58: $28.00 | J58: $49.99 | L58: $0.00
A59: Package Classic Great Britain Smooth Black | B59: Package | C59: Classic | D59: Great Britain | E59: Smooth Black | F59: Classic Heritage Great Britain Black Strap | G59: 811685025390 | H59: PCH5390 | I59: $28.00 | J59: $49.99 | L59: $0.00
A60: Package Classic Italy Smooth White | B60: Package | C60: Classic | D60: Italy | E60: Smooth White | F60: Classic Heritage Italy White Strap | G60: 811685025413 | H60: PCH5413 | I60: $28.00 | J60: $49.99 | L60: $0.00
A61: Package Classic Italy Smooth Black | B61: Package | C61: Classic | D61: Italy | E61: Smooth Black | F61: Classic Heritage Italy Black Strap | G61: 818172020838 | H61: PCH0838 | I61: $28.00 | J61: $49.99 | L61: $0.00
A62: Package Classic Ireland Smooth White | B62: Package | C62: Classic | D62: Ireland | E62: Smooth White | F62: Classic Heritage Ireland White Strap | G62: 811685027073 | H62: PCH7073 | I62: $28.00 | J62: $49.99 | L62: $0.00
A63: Package Classic Ireland Smooth Black | B63: Package | C63: Classic | D63: Ireland | E63: Smooth Black | F63: Classic Heritage Ireland Black Strap | G63: 811685026229 | H63: PCH6229 | I63: $28.00 | J63: $49.99 | L63: $0.00
A64: Package Classic Mexico Smooth White | B64: Package | C64: Classic | D64: Mexico | E64: Smooth White | F64: Classic Heritage Mexico White Strap | G64: 811685027431 | H64: PCH7431 | I64: $28.00 | J64: $49.99 | L64: $0.00
A65: Package Classic Mexico Smooth Black | B65: Package | C65: Classic | D65: Mexico | E65: Smooth Black | F65: Classic Heritage Mexico Black Strap | G65: 811685027448 | H65: PCH7448 | I65: $28.00 | J65: $49.99 | L65: $0.00
A66: Package Classic Texas Smooth White | B66: Package | C66: Classic | D66: Texas | E66: Smooth White | F66: Classic Heritage Texas White Strap | G66: 811685027509 | H66: PCH7509 | I66: $28.00 | J66: $49.99 | L66: $0.00
A67: Package Classic Texas Smooth Black | B67: Package | C67: Classic | D67: Texas | E67: Smooth Black | F67: Classic Heritage Texas Black Strap | G67: 811685027097 | H67: PCH7097 | I67: $28.00 | J67: $49.99 | L67: $0.00
A68: Package Classic Texas - Aston Pewter Smooth Black | B68: Package | C68: Classic | D68: Texas - Aston Pewter | E68: Smooth Black | F68: Classic Heritage Texas Aston Pewter Black Strap | G68: 811685028070 | H68: PCH8070 | I68: $28.00 | J68: $55.99 | L68: $0.00
A69: =(B69&" "&C69&" "&D69&" "&E69) -> Package Classic Scotland Smooth White | B69: Package | C69: Classic | D69: Scotland | E69: Smooth White | F69: Classic Heritage Scotland White Strap | G69: 811685027165 | H69: PCH7165 | I69: $28.00 | J69: $49.99 | L69: =K69*I69 -> $0.00
A70: Package Classic Scotland Smooth Black | B70: Package | C70: Classic | D70: Scotland | E70: Smooth Black | F70: Classic Heritage Scotland Black Strap | G70: 811685027738 | H70: PCH7738 | I70: $28.00 | J70: $49.99 | L70: $0.00
A71: Package Classic USA - Black Series Smooth Black | B71: Package | C71: Classic | D71: USA - Black Series | E71: Smooth Black | F71: Classic Black Series USA | G71: 811685024614 | H71: PCB4614 | I71: $28.00 | J71: $49.99 | L71: $0.00
A72: Package Classic Texas - Black Series Smooth Black | B72: Package | C72: Classic | D72: Texas - Black Series | E72: Smooth Black | F72: Classic Black Series Texas | G72: 811685024638 | H72: PCB4638 | I72: $28.00 | J72: $49.99 | L72: $0.00
A73: Package Classic Canada - Black Series Smooth Black | B73: Package | C73: Classic | D73: Canada - Black Series | E73: Smooth Black | F73: Classic Black Series Canada | G73: 811685024621 | H73: PCB4621 | I73: $28.00 | J73: $49.99 | L73: $0.00
A74: Package Classic Great Britain - Black Series Smooth Black | B74: Package | C74: Classic | D74: Great Britain - Black Series | E74: Smooth Black | F74: Classic Black Series Great Britain | G74: 811685024607 | H74: PCB4607 | I74: $28.00 | J74: $49.99 | L74: $0.00
A75: Blank | B75: - | C75: - | D75: - | E75: - | F75: - | G75: - | H75: - | I75: $0.00 | J75: - | K75: - | L75: -
A76: Package Classic USA - Black Series Walnut | B76: Package | C76: Classic | D76: USA - Black Series | E76: Walnut | F76: Classic Black Series USA Walnut | G76: 811685027981 | H76: PCB7981 | I76: $28.00 | J76: $49.99 | L76: $0.00
